fUSD/lending_fUSD_20240626
["ID","MTS","AMOUNT","RATE_DAILY","PERIOD"]
[330434530,1719400248544,-150.0,0.00021769,2]
[330434531,1719400248553,-150.5,0.0002177,30]
[330434532,1719400248563,-262.0,0.0002177,30]
[330434533,1719400248572,-262.0,0.0002177,30]
[330434534,1719400248581,-240.0,0.0002177,30]
[330434535,1719400248591,-240.0,0.0002177,30]
[330434536,1719400248600,-150.0,0.0002177,2]
[330434537,1719400248609,-241.54316932,0.00021773,2]
[330434538,1719400248618,-150.5,0.0002178,30]
[330434539,1719400248628,-262.0,0.0002178,30]
[330434540,1719400248638,-295.36,0.0002178,30]
[330434541,1719400248647,-262.0,0.0002178,30]
[330434542,1719400248656,-262.0,0.0002178,30]
[330434543,1719400248666,-240.0,0.0002178,30]
[330434544,1719400248676,-240.0,0.0002178,30]
[330434545,1719400248686,-4970.27386621,0.00021781,3]
[330434546,1719400248695,-150.0,0.00021789,2]
[330434547,1719400248705,-150.5,0.0002179,30]
[330434548,1719400248714,-151.74,0.0002179,30]
[330434549,1719400248723,-262.0,0.0002179,30]
[330434550,1719400248733,-150.5,0.0002179,30]
[330434551,1719400248742,-262.0,0.0002179,30]
[330434552,1719400248752,-262.0,0.0002179,30]
[330434553,1719400248762,-240.0,0.0002179,30]
[330434554,1719400248771,-240.0,0.0002179,30]
[330434555,1719400248781,-154.49,0.0002179,2]
[330434556,1719400248792,-154.49,0.0002179,2]
[330434557,1719400248801,-241.54316932,0.00021791,2]
[330434558,1719400248811,-1031.51166446,0.00021799,2]
[330434559,1719400248820,-305.22875309,0.00021799,2]
[330434560,1719400248830,-289114.05133692,0.000218,2]
[330434561,1719400248845,-15478.41705377,0.000218,2]
[330434562,1719400248857,-3563.3413326,0.000218,2]
[330434563,1719400248868,-10142.18601519,0.000218,2]
[330434564,1719400248880,-404.0,0.000218,2]
[330434565,1719400248951,-717.18626309,0.00021636,2]
[330434566,1719400248963,-44419.49238078,0.000218,2]
[330434590,1719400654102,155.090322,0.00010194,2]
[330434596,1719400690136,155.0,0.00010194,2]
[330434598,1719400704634,150.0,0.00010194,2]
[330434599,1719400704659,150.0,0.00010194,2]
[330434600,1719400704683,150.0,0.00010194,2]
[330434601,1719400709376,408.60136225,0.00010194,2]
[330434604,1719400777634,299.74519959,0.00010194,2]
[330434605,1719400777657,150.0,0.00010194,2]
[330434606,1719400777684,2864.16384902,0.00010194,2]
[330434607,1719400793342,529.49357466,0.00010193,2]
[330434608,1719400795370,750.0,0.00010194,2]
[330434609,1719400825887,150.0,0.00010194,2]
[330434610,1719400825910,5.5348255,0.00010194,2]
[330434611,1719400828191,277.74016818,0.00010194,2]
[330434615,1719400850883,150.0,0.00010194,2]
[330434616,1719400850906,9.4072037,0.00010194,2]
[330434618,1719400876672,150.0,0.00010194,2]
[330434619,1719400876698,150.0,0.00010194,2]
[330434620,1719400876723,1541.06058256,0.00010194,2]
[330434624,1719400913835,150.0,0.00010194,2]
[330434625,1719400913860,44.24643572,0.00010194,2]
[330434626,1719400916371,105.75356428,0.00010194,2]
[330434627,1719400916396,150.0,0.00010194,2]
[330434628,1719400916419,150.0,0.00010194,2]
[330434629,1719400916442,150.0,0.00010194,2]
[330434630,1719400916465,44.24643572,0.00010194,2]
[330434631,1719400971310,150.0,0.00010194,2]
[330434632,1719400971336,150.0,0.00010194,2]
[330434633,1719400971358,150.0,0.00010194,2]
[330434634,1719400971381,159.60037247,0.00010194,2]
[330434635,1719400971405,150.0,0.00010194,2]
[330434636,1719400971429,1081.46021009,0.00010194,2]
[330434638,1719401005684,150.0,0.00010193,2]
[330434639,1719401005706,150.0,0.00010193,2]
[330434640,1719401005727,150.0,0.00010193,2]
[330434641,1719401005749,150.0,0.00010193,2]
[330434642,1719401005771,150.0,0.00010193,2]
[330434643,1719401005792,150.0,0.00010193,2]
[330434644,1719401006114,150.0,0.00010193,2]
[330434645,1719401006136,219.98169867,0.00010193,2]
[330434646,1719401016389,150.0,0.00010194,2]
[330434647,1719401016416,150.0,0.00010194,2]
[330434648,1719401016441,150.0,0.00010194,2]
[330434649,1719401016469,150.0,0.00010194,2]
[330434650,1719401016492,150.0,0.00010194,2]
[330434651,1719401016514,150.0,0.00010194,2]
[330434652,1719401016537,150.0,0.00010194,2]
[330434653,1719401016561,25.16447885,0.00010194,2]
[330434656,1719401073647,124.83552115,0.00010194,2]
[330434657,1719401073669,150.0,0.00010194,2]
[330434658,1719401073692,175.16447885,0.00010194,2]
[330434659,1719401073715,150.0,0.00010194,2]
[330434660,1719401073737,359.19256352,0.00010194,2]
[330434661,1719401110435,552.57239721,0.00010194,2]
[330434664,1719401170127,200.49794544,0.00010947,2]
[330434665,1719401179402,959.19256352,0.00010194,2]
[330434669,1719401263675,959.19256352,0.00010194,2]
[330434671,1719401287725,156.99647983,0.00010194,2]
[330434672,1719401292807,292.12579859,0.00010194,2]
[330434673,1719401313868,404.58505095,0.00010194,2]
[330434674,1719401357326,959.19256352,0.00010194,2]
[330434675,1719401363173,-189.23515969,0.00011684,2]
[330434676,1719401363194,-150.0,0.00011685,2]
[330434677,1719401363216,-155.0,0.00011785,2]
[330434678,1719401363236,-155.0,0.00011799,2]
[330434679,1719401363258,-155.16688485,0.00011799,2]
[330434680,1719401363280,-217.81272639,0.00012027,2]
[330434681,1719401363302,-400.945076,0.00012344,2]
[330434682,1719401363323,-174.37453955,0.00012345,2]
[330434688,1719401433461,-717.18626309,0.00012343,2]
[330434689,1719401433471,-57.81373431,0.00012344,2]
[330434690,1719401433483,-417.41789249,0.00012344,2]
[330434691,1719401433498,-155.14155178,0.00012344,2]
[330434692,1719401433508,-1366.00115088,0.00012345,2]
[330434693,1719401433518,-526.48485008,0.00012345,2]
[330434694,1719401433527,-140.75109317,0.00012345,2]
[330434708,1719401434658,-101.37345215,0.00012345,2]
[330434709,1719401434668,-442.40862375,0.00012346,2]
[330434710,1719401434678,-183.27892786,0.00012348,2]
[330434711,1719401434691,-195.36828574,0.00012348,2]
[330434712,1719401434701,-123.27653688,0.00012348,2]
[330434713,1719401434871,-1268.21772352,0.00012027,2]
[330434714,1719401434882,-528.36108574,0.00012348,2]
[330434715,1719401434892,-155.0,0.00012348,2]
[330434716,1719401434903,-499.99,0.00012349,2]
[330434717,1719401434913,-181.01265432,0.00012351,2]
[330434718,1719401434924,-301.4276801,0.00012352,2]
[330434719,1719401434935,-210.77279321,0.00012352,2]
[330434720,1719401434945,-202.97443476,0.00012352,2]
[330434721,1719401434954,-555.12,0.00012356,2]
[330434722,1719401434965,-959.19256352,0.00012356,2]
[330434723,1719401434975,-2355.93,0.00012356,2]
[330434724,1719401434985,-155.0,0.00013373,2]
[330434725,1719401434998,-300.0,0.00013374,2]
[330434726,1719401435007,-150.0,0.00013374,2]
[330434727,1719401435018,-150.0,0.00013374,2]
[330434728,1719401435027,-328.36132783,0.00013374,2]
[330434729,1719401435038,-157.1593,0.00013502,2]
[330434730,1719401435048,-1000.0,0.000139,2]
[330434731,1719401435058,-420.0,0.00014661,2]
[330434732,1719401435068,-210.0,0.00014711,2]
[330434733,1719401435079,-210.0,0.00014711,2]
[330434734,1719401435089,-496.10852137,0.00014963,2]
[330434735,1719401435099,-163.64202156,0.00014963,2]
[330434736,1719401435109,-155.0,0.00014963,2]
[330434737,1719401435119,-159.95883883,0.00014963,2]
[330434738,1719401435129,-181.02431915,0.00014963,2]
[330434739,1719401435140,-579.3338702,0.00014963,2]
[330434740,1719401435150,-525.18,0.00015765,2]
[330434741,1719401435160,-1756.93744318,0.000165,2]
[330434742,1719401435171,-2491.89774885,0.00017,2]
[330434743,1719401435182,-1757.04,0.0001726,2]
[330434744,1719401435193,-185.0,0.00017322,2]
[330434745,1719401435203,-200.0,0.00017333,2]
[330434746,1719401435213,-261.68,0.00017344,2]
[330434747,1719401435223,-185.0,0.00017369,2]
[330434748,1719401435233,-2751.0,0.00017383,2]
[330434749,1719401435244,-185.0,0.00017417,2]
[330434750,1719401435255,-250.0,0.00017461,2]
[330434751,1719401435266,-185.0,0.00017464,2]
[330434752,1719401435276,-185.0,0.00017512,2]
[330434753,1719401435286,-286.59,0.00017551,2]
[330434754,1719401435296,-150.0,0.00017551,2]
[330434755,1719401435306,-185.0,0.00017559,2]
[330434756,1719401435316,-174.31,0.00017598,2]
[330434757,1719401435326,-200.0,0.00017601,2]
[330434758,1719401435336,-185.0,0.00017607,2]
[330434759,1719401435345,-293.48,0.00017635,2]
[330434760,1719401435355,-185.0,0.00017654,2]
[330434761,1719401435365,-628.67146649,0.000177,2]
[330434762,1719401435380,-185.0,0.00017702,2]
[330434763,1719401435390,-185.0,0.00017749,2]
[330434764,1719401435400,-500.0,0.00017767,2]
[330434765,1719401435410,-185.0,0.00017797,2]
[330434766,1719401435421,-250.0,0.00017821,2]
[330434767,1719401435431,-185.0,0.00017844,2]
[330434768,1719401435442,-173.34,0.00017877,2]
[330434769,1719401435455,-185.0,0.00017892,2]
[330434770,1719401435467,-9095.21,0.00017932,2]
[330434771,1719401435477,-185.0,0.00017939,2]
[330434772,1719401435487,-185.0,0.00017987,2]
[330434773,1719401435498,-525.18,0.00018029,2]
[330434774,1719401435508,-185.0,0.00018034,2]
[330434775,1719401435519,-185.0,0.00018082,2]
[330434776,1719401435528,-185.0,0.00018129,2]
[330434777,1719401435538,-185.0,0.00018177,2]
[330434778,1719401435549,-500.0,0.00018181,2]
[330434779,1719401435559,-185.0,0.00018224,2]
[330434780,1719401435569,-1000.0,0.00018794,2]
[330434781,1719401435580,-167.63,0.0001913,2]
[330434782,1719401435590,-250.0,0.00019178,2]
[330434783,1719401435600,-500.0,0.00019277,2]
[330434784,1719401435610,-174.31,0.00019358,2]
[330434785,1719401435621,-1000.0,0.000195,2]
[330434786,1719401435631,-175.55,0.00019522,2]
[330434787,1719401435641,-212.1083,0.00019739,2]
[330434788,1719401435651,-2600.0,0.00019825,2]
[330434789,1719401435662,-500.0,0.00019825,2]
[330434790,1719401435672,-500.0,0.00019825,2]
[330434791,1719401435682,-166.439,0.00019839,2]
[330434792,1719401435692,-150.0,0.00019839,2]
[330434793,1719401435702,-2412.0,0.00019839,2]
[330434794,1719401435712,-1304.0,0.00019839,2]
[330434795,1719401435722,-1984.0,0.00019839,2]
[330434796,1719401435732,-547.0,0.00019839,2]
[330434797,1719401435744,-3201.0,0.00019839,2]
[330434798,1719401435753,-1068.0,0.00019839,2]
[330434799,1719401435763,-1830.0,0.00019839,2]
[330434800,1719401435773,-359.0,0.00019839,2]
[330434801,1719401435783,-5168.0,0.00019839,2]
[330434802,1719401435794,-1655.0,0.00019839,2]
[330434803,1719401435804,-5800.0,0.00019839,2]
[330434804,1719401435814,-291.0,0.00019839,2]
[330434805,1719401435824,-38166.0,0.00019839,2]
[330434806,1719401435834,-1272.0,0.00019839,2]
[330434807,1719401435845,-151.0,0.00020194,2]
[330434808,1719401435855,-7198.855,0.00020273,2]
[330434809,1719401435864,-525.18,0.00020293,2]
[330434810,1719401435875,-155.0,0.00020372,2]
[330434811,1719401435886,-155.0,0.00020372,2]
[330434812,1719401435896,-500.0,0.00020373,2]
[330434813,1719401435907,-2600.0,0.00020373,2]
[330434814,1719401435917,-500.0,0.00020373,2]
[330434815,1719401435927,-1000.0,0.000204,2]
[330434816,1719401435938,-225.0,0.000204,2]
[330434817,1719401435948,-355.0,0.000204,2]
[330434818,1719401435959,-151.0,0.00020753,2]
[330434819,1719401435969,-1000.0,0.000208,2]
[330434820,1719401435980,-500.0,0.00020921,2]
[330434821,1719401435991,-2600.0,0.00020921,2]
[330434822,1719401436001,-500.0,0.00020921,2]
[330434823,1719401436011,-1250.0,0.00021,2]
[330434824,1719401436022,-174.31,0.00021118,2]
[330434825,1719401436032,-1000.0,0.00021143,2]
[330434826,1719401436042,-1200.0,0.00021195,2]
[330434827,1719401436052,-1000.0,0.000212,2]
[330434828,1719401436062,-151.0,0.00021312,2]
[330434829,1719401436072,-581.822684,0.00021321,2]
[330434830,1719401436082,-172.034542,0.00021321,2]
[330434831,1719401436092,-2628.83938,0.00021321,2]
[330434832,1719401436102,-181.81959,0.00021321,2]
[330434833,1719401436112,-1906.13639216,0.00021364,2]
[330434834,1719401436122,-1098.57626955,0.00021364,2]
[330434835,1719401436132,-1104.51753719,0.00021364,2]
[330434836,1719401436142,-194.88277927,0.00021369,2]
[330434837,1719401436152,-922.91911775,0.00021387,2]
[330434838,1719401436163,-415.90866656,0.0002139,2]
[330434839,1719401436173,-194.88277919,0.00021428,2]
[330434840,1719401436183,-922.9191177,0.00021444,2]
[330434841,1719401436193,-500.0,0.00021469,2]
[330434842,1719401436203,-500.0,0.00021469,2]
[330434843,1719401436212,-2600.0,0.00021469,2]
[330434844,1719401436224,-384.20872226,0.00021471,2]
[330434845,1719401436233,-194.88277919,0.00021487,2]
[330434846,1719401436245,-922.9191177,0.00021501,2]
[330434847,1719401436256,-150.0,0.00021523,2]
[330434848,1719401436265,-150.0,0.00021524,2]
[330434849,1719401436275,-150.0,0.00021529,2]
[330434850,1719401436286,-150.0,0.0002153,2]
[330434851,1719401436296,-150.0,0.00021531,2]
[330434852,1719401436306,-150.0,0.00021532,2]
[330434853,1719401436316,-150.0,0.00021533,2]
[330434854,1719401436327,-150.0,0.00021533,2]
[330434855,1719401436337,-150.0,0.00021533,2]
[330434856,1719401436348,-150.0,0.00021535,2]
[330434857,1719401436358,-150.0,0.00021543,2]
[330434858,1719401436369,-150.0,0.00021546,2]
[330434859,1719401436384,-194.88277919,0.00021546,2]
[330434860,1719401436395,-150.0,0.00021551,2]
[330434861,1719401436406,-150.0,0.00021555,2]
[330434862,1719401436423,-922.9191177,0.00021558,2]
[330434863,1719401436433,-150.0,0.00021561,2]
[330434864,1719401436443,-150.0,0.00021562,2]
[330434865,1719401436455,-150.0,0.00021562,2]
[330434866,1719401436464,-150.0,0.00021566,2]
[330434867,1719401436475,-150.0,0.00021568,2]
[330434868,1719401436484,-150.0,0.00021569,2]
[330434869,1719401436495,-150.0,0.00021574,2]
[330434870,1719401436506,-150.0,0.00021575,2]
[330434871,1719401436516,-150.0,0.00021579,2]
[330434872,1719401436525,-150.0,0.00021584,2]
[330434873,1719401436535,-150.0,0.00021585,2]
[330434874,1719401436545,-150.0,0.00021586,2]
[330434875,1719401436555,-581.822684,0.00021587,2]
[330434876,1719401436565,-2628.83938,0.00021587,2]
[330434877,1719401436575,-150.0,0.00021589,2]
[330434878,1719401436584,-150.0,0.00021589,2]
[330434879,1719401436595,-5000.0,0.00021589,2]
[330434880,1719401436604,-150.0,0.0002159,2]
[330434881,1719401436614,-277.887,0.0002159,2]
[330434882,1719401436623,-3510.731,0.0002159,2]
[330434883,1719401436633,-2500.0,0.0002159,2]
[330434884,1719401436642,-150.0,0.00021591,2]
[330434885,1719401436651,-150.0,0.00021591,2]
[330434886,1719401436660,-150.0,0.00021593,2]
[330434887,1719401436670,-150.0,0.00021594,2]
[330434888,1719401436679,-150.0,0.00021595,2]
[330434889,1719401436689,-150.0,0.00021597,2]
[330434890,1719401436699,-150.0,0.00021597,2]
[330434891,1719401436709,-150.0,0.00021598,2]
[330434892,1719401436719,-164.29887117,0.000216,2]
[330434893,1719401436728,-197.09674146,0.000216,2]
[330434894,1719401436738,-319.69783831,0.000216,2]
[330434895,1719401436751,-150.0,0.00021602,2]
[330434896,1719401436760,-150.0,0.00021604,2]
[330434897,1719401436770,-150.0,0.00021614,2]
[330434898,1719401436780,-922.9191177,0.00021615,2]
[330434899,1719401436790,-7500.0,0.00021616,2]
[330434900,1719401436800,-150.0,0.00021618,2]
[330434901,1719401436810,-150.0,0.0002162,2]
[330434902,1719401436820,-150.0,0.00021622,2]
[330434903,1719401436830,-150.0,0.00021623,2]
[330434904,1719401436840,-150.0,0.00021625,2]
[330434905,1719401436850,-150.0,0.00021626,2]
[330434906,1719401436859,-150.0,0.00021626,2]
[330434907,1719401436869,-150.0,0.00021629,2]
[330434908,1719401436879,-150.0,0.00021636,2]
[330434909,1719401436888,-150.0,0.00021639,2]
[330434910,1719401436898,-150.0,0.0002164,2]
[330434911,1719401436909,-150.0,0.00021643,2]
[330434912,1719401436918,-153.39,0.00021644,2]
[330434913,1719401436928,-404.99,0.00021644,2]
[330434914,1719401436937,-150.0,0.00021644,2]
[330434915,1719401436947,-150.0,0.00021647,2]
[330434916,1719401436958,-164.29887112,0.0002165,2]
[330434917,1719401436968,-150.0,0.00021665,2]
[330434918,1719401436978,-150.0,0.00021669,2]
[330434919,1719401436987,-922.9191177,0.00021672,2]
[330434920,1719401436998,-150.0,0.00021673,2]
[330434921,1719401437008,-150.0,0.00021675,2]
[330434922,1719401437018,-197.09674146,0.00021675,2]
[330434923,1719401437028,-1000.0,0.00021675,2]
[330434924,1719401437037,-181.81959,0.00021676,2]
[330434925,1719401437047,-150.0,0.00021677,2]
[330434926,1719401437058,-150.0,0.00021681,2]
[330434927,1719401437068,-150.0,0.00021683,2]
[330434928,1719401437079,-150.0,0.00021687,2]
[330434929,1719401437089,-150.0,0.00021687,2]
[330434930,1719401437099,-187.96812151,0.00021689,2]
[330434931,1719401437110,-206.49856631,0.0002169,2]
[330434932,1719401437120,-80562.8073929,0.0002169,3]
[330434933,1719401437130,-154.34,0.0002169,2]
[330434934,1719401437139,-100000.0,0.0002169,2]
[330434935,1719401437149,-374.8776,0.0002169,2]
[330434936,1719401437159,-543.96475932,0.00021691,2]
[330434937,1719401437169,-150.0,0.00021692,2]
[330434938,1719401437179,-326.82157281,0.00021692,2]
[330434939,1719401437190,-1012.87391772,0.00021694,2]
[330434940,1719401437199,-150.0,0.00021695,2]
[330434941,1719401437209,-622.38422952,0.00021697,2]
[330434942,1719401437219,-331.80047756,0.00021698,4]
[330434943,1719401437228,-500.0,0.00021699,2]
[330434944,1719401437238,-500.0,0.00021699,2]
[330434945,1719401437249,-500.0,0.00021699,2]
[330434946,1719401437260,-300.0,0.00021699,2]
[330434947,1719401437270,-20807.7854,0.000217,2]
[330434948,1719401437280,-1074.8757,0.000217,2]
[330434949,1719401437542,-8718.83451169,0.000217,2]
[330434950,1719401437569,-572.63501406,0.000217,2]
[330434951,1719401437582,-716.59388063,0.000217,2]
[330434952,1719401437594,-1661.22199362,0.000217,2]
[330434953,1719401437604,-995.85831988,0.000217,2]
[330434954,1719401437618,-18912.35028012,0.000217,2]
[330434955,1719401437628,-6128.3805,0.000217,2]
[330434956,1719401437638,-500.0,0.000217,2]
[330434957,1719401437648,-289.85507,0.000217,2]
[330434958,1719401437658,-32872.04605658,0.000217,2]
[330434959,1719401437671,-212127.95394342,0.000217,2]
[330434960,1719401437682,-167.4148,0.000217,2]
[330434961,1719401437691,-447.5985,0.000217,2]
[330434962,1719401437701,-179.50875951,0.000217,2]
[330434963,1719401437712,-150.0,0.000217,2]
[330434964,1719401437723,-349.19826252,0.000217,2]
[330434965,1719401437733,-164.29887112,0.000217,2]
[330434966,1719401437745,-170.04121699,0.000217,2]
[330434967,1719401437756,-3760.72128107,0.000217,2]
[330434968,1719401437766,-150.0,0.00021701,2]
[330434969,1719401437776,-150.0,0.00021705,2]
[330434970,1719401437786,-155.10270336,0.00021707,2]
[330434971,1719401437797,-150.0,0.00021708,2]
[330434972,1719401437808,-150.0,0.0002171,2]
[330434973,1719401437818,-150.0,0.00021715,2]
[330434974,1719401437828,-150.0,0.00021716,2]
[330434975,1719401437839,-150.0,0.00021716,2]
[330434976,1719401437849,-349.1982625,0.00021718,2]
[330434977,1719401437859,-440.2968,0.00021719,2]
[330434978,1719401437869,-150.0,0.00021719,2]
[330434979,1719401437879,-150.0,0.00021719,2]
[330434980,1719401437889,-150.0,0.00021721,2]
[330434981,1719401437900,-150.0,0.00021722,2]
[330434982,1719401437910,-500.0,0.00021724,2]
[330434983,1719401437920,-922.9191177,0.00021729,2]
[330434984,1719401437930,-349.1982625,0.00021736,2]
[330434985,1719401437940,-1200.0,0.00021743,2]
[330434986,1719401437950,-150.0,0.00021746,2]
[330434987,1719401437961,-150.0,0.00021747,2]
[330434988,1719401437971,-150.0,0.00021748,2]
[330434989,1719401437981,-164.29887112,0.0002175,2]
[330434990,1719401437991,-197.09674146,0.0002175,2]
[330434991,1719401438004,-150.0,0.00021753,2]
[330434992,1719401438014,-349.1982625,0.00021755,2]
[330434993,1719401438023,-150.0,0.00021756,2]
[330434994,1719401438032,-150.0,0.00021757,2]
[330434995,1719401438042,-150.0,0.00021759,2]
[330434996,1719401438051,-150.0,0.00021759,2]
[330434997,1719401438060,-150.0,0.00021761,2]
[330434998,1719401438070,-150.0,0.00021761,2]
[330434999,1719401438080,-150.0,0.00021762,2]
[330435000,1719401438090,-150.0,0.00021764,2]
[330435001,1719401438099,-150.0,0.00021765,2]
[330435002,1719401438109,-918.0,0.00021766,2]
[330435003,1719401438119,-150.0,0.00021769,2]
[330435004,1719401438129,-150.0,0.00021769,2]
[330435005,1719401438139,-349.1982625,0.00021773,2]
[330435006,1719401438148,-150.0,0.00021774,2]
[330435007,1719401438158,-150.0,0.00021775,2]
[330435008,1719401438168,-150.0,0.00021776,2]
[330435009,1719401438178,-150.0,0.00021777,2]
[330435010,1719401438189,-150.0,0.00021778,2]
[330435011,1719401438199,-150.0,0.00021786,2]
[330435012,1719401438208,-922.9191177,0.00021786,2]
[330435013,1719401438218,-150.0,0.00021787,2]
[330435014,1719401438228,-264.57347071,0.00021789,2]
[330435015,1719401438239,-150.0,0.0002179,2]
[330435016,1719401438252,-154.34,0.0002179,2]
[330435017,1719401438261,-349.1982625,0.00021791,2]
[330435018,1719401438271,-2027.38038669,0.00021799,2]
[330435019,1719401438280,-27947.87909335,0.000218,2]
[330435020,1719401438294,-1057.39219013,0.000218,2]
[330435022,1719401440366,-407.11805532,0.00012344,2]
[330435023,1719401440384,-310.06820777,0.00012344,2]
[330435024,1719401440394,-481.53526169,0.00019839,2]
[330435042,1719401441771,-575.6828072,0.00019839,2]
[330435043,1719401441784,-603.78193111,0.00019839,2]
[330435044,1719401441793,-443.0,0.00019839,2]
[330435045,1719401441803,-658.434,0.00019839,2]
[330435046,1719401441813,-812.0,0.00019839,2]
[330435047,1719401441823,-150.0,0.00021519,2]
[330435048,1719401441833,-150.0,0.00021522,2]
[330435049,1719401441843,-150.0,0.00021524,2]
[330435050,1719401441853,-150.0,0.00021533,2]
[330435051,1719401441863,-150.0,0.00021538,2]
[330435052,1719401441874,-150.0,0.00021543,2]
[330435053,1719401441884,-150.0,0.00021543,2]
[330435054,1719401441894,-150.0,0.00021544,2]
[330435055,1719401441904,-88.67178195,0.00021547,2]
[330435056,1719401441917,-61.32821805,0.00021547,2]
[330435057,1719401441927,-150.0,0.00021549,2]
[330435058,1719401441937,-137.07553333,0.00021559,2]
[330435059,1719401441949,-12.92446667,0.00021559,2]
[330435060,1719401441959,-150.0,0.00021562,2]
[330435061,1719401441969,-150.0,0.00021573,2]
[330435062,1719401441979,-150.0,0.00021577,2]
[330435063,1719401441988,-150.0,0.00021579,2]
[330435064,1719401442000,-150.0,0.00021587,2]
[330435065,1719401442010,-33.05808721,0.00021588,2]
[330435066,1719401442021,-116.94191279,0.00021588,2]
[330435067,1719401442031,-150.0,0.00021589,2]
[330435068,1719401442040,-150.0,0.00021589,2]
[330435069,1719401442051,-150.0,0.0002159,2]
[330435070,1719401442060,-127.93797323,0.0002159,2]
[330435071,1719401442073,-22.06202677,0.0002159,2]
[330435072,1719401442082,-150.0,0.00021593,2]
[330435073,1719401442092,-1030.47749887,0.00021599,2]
[330435074,1719401442104,-923.221,0.00021599,2]
[330435075,1719401442116,-1153.24656109,0.00021599,2]
[330435076,1719401442126,-150.0,0.00021605,2]
[330435077,1719401442136,-194.88277919,0.00021605,2]
[330435078,1719401442146,-150.0,0.00021606,2]
[330435079,1719401442156,-150.0,0.00021609,2]
[330435080,1719401442166,-150.0,0.00021615,2]
[330435081,1719401442176,-150.0,0.00021621,2]
[330435082,1719401442186,-150.0,0.00021623,2]
[330435083,1719401442196,-150.0,0.00021626,2]
[330435084,1719401442206,-150.0,0.00021629,2]
[330435085,1719401442216,-150.0,0.00021631,2]
[330435086,1719401442225,-150.0,0.00021635,2]
[330435087,1719401442235,-150.0,0.00021636,2]
[330435088,1719401442246,-150.0,0.00021636,2]
[330435089,1719401442255,-150.0,0.00021638,2]
[330435090,1719401442265,-150.0,0.00021648,2]
[330435091,1719401442276,-150.0,0.00021654,2]
[330435092,1719401442286,-150.0,0.00021655,2]
[330435093,1719401442296,-150.0,0.00021655,2]
[330435094,1719401442306,-150.0,0.00021657,2]
[330435095,1719401442316,-150.0,0.00021657,2]
[330435096,1719401442326,-150.0,0.00021666,2]
[330435097,1719401442336,-150.0,0.00021669,2]
[330435098,1719401442347,-150.0,0.0002167,2]
[330435099,1719401442356,-150.0,0.00021671,2]
[330435100,1719401442367,-150.0,0.00021677,2]
[330435101,1719401442379,-150.0,0.00021684,2]
[330435102,1719401442391,-150.0,0.00021684,2]
[330435103,1719401442401,-150.0,0.00021684,2]
[330435104,1719401442411,-150.0,0.0002169,2]
[330435105,1719401442422,-150.0,0.0002169,2]
[330435106,1719401442432,-150.0,0.00021692,2]
[330435107,1719401442442,-150.0,0.00021693,2]
[330435108,1719401442469,-150.0,0.00021694,2]
[330435109,1719401442486,-150.0,0.00021695,2]
[330435110,1719401442511,-150.0,0.00021706,2]
[330435111,1719401442530,-150.0,0.00021709,2]
[330435112,1719401442554,-150.0,0.00021712,2]